fUSD/lending_fUSD_20240602
["ID","MTS","AMOUNT","RATE_DAILY","PERIOD"]
[328397995,1717336907866,702.76,0.00034562,30]
[328397996,1717336908312,702.76,0.00034562,30]
[328397997,1717336908413,702.76,0.00034562,30]
[328397998,1717336908682,702.76,0.00034562,30]
[328397999,1717336908953,702.76,0.00034562,30]
[328398000,1717336909275,702.90693298,0.00034562,30]
[328398001,1717336930762,500.0,0.00034562,30]
[328398002,1717336931041,500.0,0.00034562,30]
[328398003,1717336931309,500.0,0.00034562,30]
[328398004,1717336931586,407.84,0.00034562,30]
[328398005,1717336933629,500.0,0.00034562,30]
[328398006,1717336933910,500.0,0.00034562,30]
[328398007,1717336934163,206.29168833,0.00034562,30]
[328398008,1717336937894,521.3984644,0.00034562,30]
[328398009,1717336939912,500.0,0.00034562,30]
[328398010,1717336939975,500.0,0.00034562,30]
[328398011,1717336940045,500.0,0.00034562,30]
[328398012,1717336940317,500.0,0.00034562,30]
[328398013,1717336940585,500.0,0.00034562,30]
[328398014,1717336940857,500.0,0.00034562,30]
[328398015,1717336941147,500.0,0.00034562,30]
[328398016,1717336941389,500.0,0.00034562,30]
[328398017,1717336941648,500.0,0.00034562,30]
[328398018,1717336941926,500.0,0.00034562,30]
[328398019,1717336942191,500.0,0.00034562,30]
[328398020,1717336942483,500.0,0.00034562,30]
[328398021,1717336942749,500.0,0.00034562,30]
[328398022,1717336943117,500.0,0.00034562,30]
[328398023,1717336943378,500.0,0.00034562,30]
[328398024,1717336943859,500.0,0.00034562,30]
[328398025,1717336944100,500.0,0.00034562,30]
[328398026,1717336944390,500.0,0.00034562,30]
[328398027,1717336944660,500.0,0.00034562,30]
[328398028,1717336944955,555.59208027,0.00034562,30]
[328398029,1717336949528,500.0,0.00034562,30]
[328398030,1717336949839,500.0,0.00034562,30]
[328398031,1717336950288,500.0,0.00034562,30]
[328398032,1717336950490,500.0,0.00034562,30]
[328398033,1717336950766,500.0,0.00034562,30]
[328398034,1717336951027,500.0,0.00034562,30]
[328398035,1717336951291,500.0,0.00034562,30]
[328398036,1717336951557,480.29635572,0.00034562,30]
[328398037,1717336982668,500.0,0.00034562,30]
[328398038,1717336982961,500.0,0.00034562,30]
[328398039,1717336983252,500.0,0.00034562,30]
[328398040,1717336983553,500.0,0.00034562,30]
[328398041,1717336983814,500.0,0.00034562,30]
[328398042,1717336984068,500.0,0.00034562,30]
[328398043,1717336984319,500.0,0.00034562,30]
[328398044,1717336984576,500.0,0.00034562,30]
[328398045,1717336984862,450.17484483,0.00034562,30]
[328398046,1717337001992,500.0,0.00034562,30]
[328398047,1717337002244,500.0,0.00034562,30]
[328398048,1717337002518,500.0,0.00034562,30]
[328398049,1717337003106,283.77692275,0.00034562,30]
[328398050,1717337007988,500.0,0.00034562,30]
[328398051,1717337008247,500.0,0.00034562,30]
[328398052,1717337008529,500.0,0.00034562,30]
[328398053,1717337008828,500.0,0.00034562,30]
[328398054,1717337009107,500.0,0.00034562,30]
[328398055,1717337009655,500.0,0.00034562,30]
[328398056,1717337030096,587.96465826,0.00034562,30]
[328398057,1717337034156,522.53831497,0.00034562,30]
[328398058,1717337041395,500.0,0.00034562,30]
[328398059,1717337041764,500.0,0.00034562,30]
[328398060,1717337042032,500.0,0.00034562,30]
[328398061,1717337042312,280.22839018,0.00034562,30]
[328398062,1717337044321,509.30297991,0.00034562,30]
[328398063,1717337051661,500.0,0.00034562,30]
[328398064,1717337052284,500.0,0.00034562,30]
[328398065,1717337052569,500.0,0.00034562,30]
[328398066,1717337052883,500.0,0.00034562,30]
[328398067,1717337053205,500.0,0.00034562,30]
[328398068,1717337053471,500.0,0.00034562,30]
[328398069,1717337053763,500.0,0.00034562,30]
[328398070,1717337054202,500.0,0.00034562,30]
[328398071,1717337054317,504.13,0.00034562,30]
[328398072,1717337060718,500.0,0.00034562,30]
[328398073,1717337061018,500.0,0.00034562,30]
[328398074,1717337061267,500.0,0.00034562,30]
[328398075,1717337061545,500.0,0.00034562,30]
[328398076,1717337061797,411.98657193,0.00034562,30]
[328398077,1717337064215,500.0,0.00034562,30]
[328398078,1717337064801,500.0,0.00034562,30]
[328398079,1717337065076,500.0,0.00034562,30]
[328398080,1717337065350,500.0,0.00034562,30]
[328398081,1717337065665,417.6740527,0.00034562,30]
[328398082,1717337066256,500.0,0.00034562,30]
[328398083,1717337066857,500.0,0.00034562,30]
[328398084,1717337067164,500.0,0.00034562,30]
[328398085,1717337067418,500.0,0.00034562,30]
[328398086,1717337067670,500.0,0.00034562,30]
[328398087,1717337067935,500.0,0.00034562,30]
[328398088,1717337068567,500.0,0.00034562,30]
[328398089,1717337069207,168.230739,0.00034562,30]
[328398090,1717337071233,500.0,0.00034562,30]
[328398091,1717337071514,500.0,0.00034562,30]
[328398092,1717337071783,500.0,0.00034562,30]
[328398093,1717337072065,500.0,0.00034562,30]
[328398094,1717337072679,500.0,0.00034562,30]
[328398095,1717337072980,500.0,0.00034562,30]
[328398096,1717337073292,500.0,0.00034562,30]
[328398097,1717337073582,500.0,0.00034562,30]
[328398098,1717337073897,542.46131771,0.00034562,30]
[328398099,1717337086564,542.39040661,0.00034562,30]
[328398100,1717337091596,525.4649374,0.00034562,30]
[328398101,1717337096994,500.0,0.00034562,30]
[328398102,1717337097242,531.04264242,0.00034562,30]
[328398103,1717337100730,552.83362572,0.00034562,30]
[328398104,1717337109935,500.0,0.00034562,30]
[328398105,1717337110207,527.86401628,0.00034562,30]
[328398106,1717337118632,334.43662963,0.00034562,30]
[328398107,1717337131272,523.24344437,0.00034562,30]
[328398108,1717337132279,500.0,0.00034562,30]
[328398109,1717337132550,500.0,0.00034562,30]
[328398110,1717337132837,533.05992123,0.00034562,30]
[328398111,1717337147310,513.9215468,0.00034562,30]
[328398112,1717337149825,522.04123907,0.00034562,30]
[328398113,1717337159805,1694.87,0.00034562,30]
[328398114,1717337160079,1694.87,0.00034562,30]
[328398115,1717337160360,1694.87,0.00034562,30]
[328398116,1717337160636,1694.87,0.00034562,30]
[328398117,1717337160919,1694.87,0.00034562,30]
[328398118,1717337161335,1694.87,0.00034562,30]
[328398119,1717337161616,1694.87,0.00034562,30]
[328398120,1717337161871,1694.87,0.00034562,30]
[328398121,1717337162175,1694.87,0.00034562,30]
[328398122,1717337162461,1694.87,0.00034562,30]
[328398123,1717337163052,1694.87,0.00034562,30]
[328398124,1717337163345,1694.87,0.00034562,30]
[328398125,1717337163637,1694.87,0.00034562,30]
[328398126,1717337163932,1694.87,0.00034562,30]
[328398127,1717337164190,1694.87,0.00034562,30]
[328398128,1717337164479,1694.87,0.00034562,30]
[328398129,1717337165293,1694.87,0.00034562,30]
[328398130,1717337165569,1694.87,0.00034562,30]
[328398131,1717337165830,1694.87,0.00034562,30]
[328398132,1717337166084,1694.87,0.00034562,30]
[328398133,1717337166350,1694.87,0.00034562,30]
[328398134,1717337167028,1694.87,0.00034562,30]
[328398135,1717337167156,1694.87,0.00034562,30]
[328398136,1717337167938,1694.94758141,0.00034562,30]
[328398137,1717337202603,494.4930118,0.00034562,30]
[328398141,1717337267264,503.70065308,0.00034562,30]
[328398142,1717337271700,504.55681281,0.00034562,30]
[328398143,1717337274042,500.0,0.00034562,30]
[328398144,1717337278005,505.89946846,0.00034562,30]
[328398145,1717337281907,500.0,0.00034562,30]
[328398146,1717337283818,500.0,0.00034562,30]
[328398147,1717337289524,178.66858623,0.00034562,30]
[328398148,1717337295159,504.46596127,0.00034562,30]
[328398149,1717337297510,508.90527767,0.00034562,30]
[328398150,1717337299922,500.0,0.00034562,30]
[328398151,1717337303806,500.0,0.00034562,30]
[328398152,1717337311563,502.00274649,0.00034562,30]
[328398153,1717337313520,504.78991683,0.00034562,30]
[328398154,1717337315923,506.66223066,0.00034562,30]
[328398155,1717337320121,501.45979328,0.00034562,30]
[328398156,1717337324256,507.40396578,0.00034562,30]
[328398158,1717337329027,502.09908529,0.00034562,30]
[328398159,1717337330973,500.0,0.00034562,30]
[328398160,1717337338422,546.81305724,0.00034562,30]
[328398161,1717337342477,502.99734983,0.00034562,30]
[328398162,1717337346351,504.83540227,0.00034562,30]
[328398163,1717337353923,603.62624983,0.00034562,30]
[328398164,1717337364354,610.8786832,0.00034562,30]
[328398165,1717337365236,506.35615662,0.00034562,30]
[328398166,1717337367563,233.45967482,0.00034562,30]
[328398167,1717337369924,505.70312827,0.00034562,30]
[328398168,1717337372500,500.0,0.00034562,30]
[328398169,1717337378126,509.9270066,0.00034562,30]
[328398170,1717337380443,503.63493045,0.00034562,30]
[328398171,1717337384172,508.85309055,0.00034562,30]
[328398172,1717337387228,500.0,0.00034562,30]
[328398173,1717337389275,501.96596043,0.00034562,30]
[328398176,1717337391848,505.38675247,0.00034562,30]
[328398177,1717337395527,504.43131339,0.00034562,30]
[328398178,1717337397825,506.73512634,0.00034562,30]
[328398179,1717337400730,509.60291624,0.00034562,30]
[328398180,1717337405104,502.75528428,0.00034562,30]
[328398182,1717337407381,408.29198661,0.00034562,30]
[328398183,1717337409529,506.37953716,0.00034562,30]
[328398184,1717337413293,503.2488681,0.00034562,30]
[328398185,1717337415662,505.00681246,0.00034562,30]
[328398186,1717337425416,505.93172535,0.00034562,30]
[328398187,1717337427972,500.0,0.00034562,30]
[328398188,1717337429995,500.0,0.00034562,30]
[328398191,1717337432122,-1979.14657313,0.00013879,2]
[328398192,1717337432133,-370.80060646,0.00013888,2]
[328398193,1717337432142,-280.92840298,0.00013899,2]
[328398194,1717337432151,-159.46500651,0.000139,2]
[328398195,1717337432163,-254.68592052,0.000139,2]
[328398196,1717337432193,-380.04295626,0.000139,2]
[328398197,1717337432204,-595.82225549,0.000139,2]
[328398198,1717337432411,-785.36792136,0.00013878,2]
[328398199,1717337432421,-26693.87396122,0.000139,2]
[328398200,1717337432431,-403.99,0.00014968,2]
[328398201,1717337432440,-3194.0,0.00015,2]
[328398202,1717337432450,-2988.76811742,0.0001516,2]
[328398203,1717337432461,-220.35888258,0.0001516,2]
[328398204,1717337432471,-150.421,0.000152,2]
[328398205,1717337432480,-199.104,0.000152,2]
[328398206,1717337432490,-151.215,0.000152,2]
[328398207,1717337432500,-200.0,0.000152,2]
[328398209,1717337432510,-200.0,0.000152,2]
[328398211,1717337432519,-150.0,0.000152,2]
[328398213,1717337432528,-1000.0,0.00016429,2]
[328398215,1717337432537,-1579.21166796,0.00016488,2]
[328398228,1717337432658,500.0,0.00034562,30]
[328398230,1717337432906,503.18093767,0.00034562,30]
[328398231,1717337437308,503.74746841,0.00034562,30]
[328398263,1717337438178,-11591.42915868,0.00016488,2]
[328398265,1717337438190,-5213.2416444,0.00016488,2]
[328398267,1717337438202,-5516.11752896,0.00016488,2]
[328398269,1717337438211,-919.95672198,0.00016559,2]
[328398271,1717337438220,-150.99,0.00016569,2]
[328398273,1717337438230,-170.69,0.00016699,2]
[328398275,1717337438240,-5196.67,0.00016699,2]
[328398277,1717337438250,-1920.56,0.00016699,2]
[328398279,1717337438260,-520.21,0.00016905,2]
[328398281,1717337438269,-250.0,0.00016912,2]
[328398282,1717337438278,-1354.52,0.00016915,2]
[328398284,1717337438288,-250.0,0.00016915,2]
[328398286,1717337438300,-362.48332984,0.00017054,2]
[328398288,1717337438309,-177.46,0.00017138,2]
[328398290,1717337438318,-403.99,0.00017232,2]
[328398292,1717337438327,-200.0,0.000177,6]
[328398294,1717337438337,-500.0,0.000178,6]
[328398296,1717337438346,-352.8,0.00017841,2]
[328398297,1717337438355,-352.8,0.00017841,2]
[328398298,1717337438365,-352.8,0.00017841,2]
[328398299,1717337438374,-500.0,0.00017856,2]
[328398300,1717337438384,-200.0,0.00017856,2]
[328398301,1717337438392,-500.0,0.00017863,2]
[328398302,1717337438402,-500.0,0.00017863,2]
[328398303,1717337438412,-5660.28959305,0.000179,2]
[328398304,1717337438424,-342.25,0.000179,2]
[328398305,1717337438436,-25770.89570999,0.000179,2]
[328398306,1717337438447,-2202.83073604,0.000179,2]
[328398307,1717337438458,-3204.85926092,0.000179,2]
[328398308,1717337438468,-636.9354,0.000179,2]
[328398309,1717337438478,-620.8513,0.000179,2]
[328398310,1717337438488,-161.13638474,0.000179,2]
[328398311,1717337438497,-160.72273957,0.000179,2]
[328398312,1717337438506,-575.86708669,0.000179,2]
[328398314,1717337438522,-1158.01182565,0.000179,2]
[328398315,1717337438533,-1006.68750238,0.000179,2]
[328398316,1717337438545,-3995.93033004,0.000179,2]
[328398317,1717337438559,-5332.03893048,0.000179,2]
[328398318,1717337438568,-1000.0,0.000179,2]
[328398319,1717337438577,-700.0,0.000179,6]
[328398320,1717337438586,-1568.53263804,0.000179,2]
[328398321,1717337438595,-161.26360729,0.000179,2]
[328398322,1717337438605,-2500.0,0.000179,2]
[328398323,1717337438614,-195.04546039,0.0001799,2]
[328398324,1717337438623,-151.16,0.0001799,2]
[328398325,1717337438633,-151.16,0.0001799,2]
[328398326,1717337438642,-155.0,0.00017998,2]
[328398327,1717337438652,-487.0,0.00018,2]
[328398328,1717337438663,-1156.84530557,0.00018,2]
[328398329,1717337438672,-132245.50860994,0.00018,2]
[328398338,1717337440834,-5271.9909959,0.00018,2]
[328398339,1717337441068,-621.95574268,0.00018,2]
[328398340,1717337441080,-1903.30924277,0.00018,2]
[328398341,1717337442572,640.75713012,0.00034562,30]
[328398370,1717337443734,-1372.1211288,0.00018,2]
[328398384,1717337446312,-629.27928532,0.0001799,3]
[328398385,1717337446465,-126.56071468,0.0001799,3]
[328398386,1717337446475,-382.84633833,0.00018,2]
[328398402,1717337447236,496.57772636,0.00034562,30]
[328398403,1717337449332,500.0,0.00034562,30]
[328398404,1717337451950,504.83376506,0.00034562,30]
[328398405,1717337485400,345.71076375,0.00034562,30]
[328398409,1717337512165,618.96279322,0.00034562,30]
[328398417,1717337630924,813.1,0.00034562,30]
[328398418,1717337631181,813.1,0.00034562,30]
[328398419,1717337632515,813.1,0.00034562,30]
[328398420,1717337632780,813.1,0.00034562,30]
[328398421,1717337633038,813.1,0.00034562,30]
[328398422,1717337633303,813.1,0.00034562,30]
[328398423,1717337633578,813.1,0.00034562,30]
[328398424,1717337633870,813.1,0.00034562,30]
[328398425,1717337634369,813.1,0.00034562,30]
[328398426,1717337634659,813.1,0.00034562,30]
[328398427,1717337634950,813.1,0.00034562,30]
[328398428,1717337635228,813.1,0.00034562,30]
[328398429,1717337635496,813.1,0.00034562,30]
[328398430,1717337635747,813.1,0.00034562,30]
[328398431,1717337636374,813.1,0.00034562,30]
[328398432,1717337636647,813.1,0.00034562,30]
[328398433,1717337636914,813.1,0.00034562,30]
[328398434,1717337637156,813.1,0.00034562,30]
[328398435,1717337637497,813.1,0.00034562,30]
[328398436,1717337637751,813.1,0.00034562,30]
[328398437,1717337637995,813.1,0.00034562,30]
[328398438,1717337638264,813.1,0.00034562,30]
[328398439,1717337638553,813.1,0.00034562,30]
[328398440,1717337638829,813.23802154,0.00034562,30]
[328398441,1717337728491,1855.69,0.00034562,30]
[328398442,1717337907230,610.5570963,0.00031,90]
[328398443,1717337908059,512.05803811,0.00034562,30]
[328398446,1717338114629,500.0,0.00034564,30]
[328398447,1717338114920,500.0,0.00034564,30]
[328398448,1717338115198,500.0,0.00034564,30]
[328398449,1717338115475,500.0,0.00034564,30]
[328398450,1717338116115,500.0,0.00034564,30]
[328398451,1717338116382,206.87427424,0.00034564,30]
[328398454,1717338196205,13669.00290725,0.00034564,30]
[328398455,1717338303576,500.0,0.00034564,30]
[328398456,1717338303894,500.0,0.00034564,30]
[328398457,1717338305242,500.0,0.00034564,30]
[328398458,1717338305865,500.0,0.00034564,30]
[328398459,1717338306173,500.0,0.00034564,30]
[328398460,1717338306450,500.0,0.00034564,30]
[328398461,1717338306745,500.0,0.00034564,30]
[328398462,1717338306997,470.11486079,0.00034564,30]
[328398463,1717338323173,215.92904102,0.00034564,30]
[328398464,1717338545896,528.53871315,0.00034564,30]
[328398479,1717338632449,-969.45652537,0.00014506,2]
[328398480,1717338632463,-477.83537578,0.00014506,2]
[328398481,1717338632474,-1979.14657313,0.00014605,2]
[328398482,1717338632485,-379.61,0.00014606,2]
[328398483,1717338632496,-531.33893025,0.00015,2]
[328398484,1717338632510,-1565.31339387,0.00015,2]
[328398485,1717338632524,-811.05669613,0.00015,2]
[328398486,1717338632538,-114.29097975,0.00015,2]
[328398487,1717338632549,-357.74902025,0.00015,2]
[328398488,1717338632561,-353.25097975,0.00015,2]
[328398489,1717338632570,-216.0,0.000156,2]
[328398490,1717338632579,-1294.0,0.000156,2]
[328398491,1717338632589,-205.258,0.000156,2]
[328398492,1717338632837,-249.414,0.000156,2]
[328398493,1717338632856,-594.79617496,0.000156,2]
[328398494,1717338632873,-700.0,0.000156,2]
[328398496,1717338632894,-418.54007673,0.000156,2]
[328398498,1717338632906,-1453.66374831,0.000156,2]
[328398499,1717338632915,-550.561,0.000156,2]
[328398500,1717338632925,-1598.21782662,0.000156,2]
[328398501,1717338632936,-669.50817338,0.000156,2]
[328398502,1717338632946,-455.44931026,0.00016018,2]
[328398503,1717338632955,-12769.38,0.00016535,2]
[328398504,1717338632964,-250.0,0.00016547,2]
[328398505,1717338632973,-1115.43,0.00016584,2]
[328398506,1717338632983,-992.03872276,0.00016584,3]
[328398507,1717338632994,-444.50127724,0.00016584,3]
[328398508,1717338633003,-250.0,0.00016594,2]
[328398509,1717338633012,-391.37290133,0.00016594,2]
[328398510,1717338633024,-608.62709867,0.00016594,2]
[328398511,1717338633033,-4499.68,0.00016741,2]
[328398512,1717338633042,-379.61,0.0001687,2]
[328398513,1717338633052,-783.85120681,0.00017259,2]
[328398514,1717338633061,-429.29,0.00017383,2]
[328398515,1717338633070,-429.29,0.00017388,2]
[328398516,1717338633079,-429.29,0.00017392,2]
[328398517,1717338633088,-429.29,0.00017397,2]
[328398518,1717338633098,-429.29,0.00017401,2]
[328398519,1717338633107,-3.25092315,0.00017406,2]
[328398539,1717338638494,-159.531,0.000156,2]
[328398540,1717338638503,-3330.163063,0.00017319,2]
[328398541,1717338638514,-426.03907685,0.00017406,2]
[328398542,1717338638524,-429.29,0.00017411,2]
[328398543,1717338638533,-429.29,0.00017415,2]
[328398544,1717338638543,-429.29,0.0001742,2]
[328398546,1717338638552,-429.29,0.00017424,2]
[328398548,1717338638561,-429.29,0.00017429,2]
[328398549,1717338638571,-429.29,0.00017434,2]
[328398551,1717338638580,-429.29,0.00017438,2]
[328398553,1717338638589,-429.29,0.00017443,2]
[328398555,1717338638599,-429.29,0.00017447,2]
[328398557,1717338638608,-429.29,0.00017452,2]
[328398559,1717338638618,-429.29,0.00017456,2]
[328398561,1717338638629,-429.29,0.00017461,2]
[328398562,1717338638638,-429.29,0.00017466,2]
[328398563,1717338638647,-429.29,0.0001747,2]
[328398564,1717338638656,-421.33,0.00017747,2]
[328398565,1717338638666,-300.0,0.000178,6]
[328398566,1717338638675,-1000.0,0.000179,2]
[328398567,1717338638685,-161.1363847,0.000179,2]
[328398568,1717338638694,-160.72273957,0.000179,2]
[328398569,1717338638704,-600.0,0.000179,6]
[328398570,1717338638713,-11062.82436897,0.000179,2]
[328398571,1717338638722,-322.3360889,0.000179,2]
[328398572,1717338638732,-755.84,0.0001799,3]
[328398573,1717338638743,-377.92,0.0001799,3]
[328398574,1717338638752,-188.96,0.0001799,3]
[328398575,1717338638761,-566.92,0.0001799,3]
[328398576,1717338638771,-151.16,0.0001799,2]
[328398577,1717338638781,-3012.65446756,0.00017998,2]
[328398578,1717338638791,-183.88986905,0.00017998,2]
[328398579,1717338638800,-280.92840298,0.00017998,2]
[328398580,1717338638810,-1058.1159863,0.00017999,5]
[328398581,1717338638819,-118936.21792863,0.00018,2]
[328398582,1717338638832,-61347.96946618,0.00018,2]
[328398583,1717338638845,-7764.8837495,0.00018,2]
[328398584,1717338638857,-760.73189318,0.00018,2]
[328398585,1717338638872,-355.83525366,0.00018,2]
[328398586,1717338638892,-4921.91502896,0.00018,2]
[328398587,1717338638903,-2499.60373804,0.00018,2]
[328398643,1717338641444,-808.0,0.000156,2]
[328398645,1717338641454,-180.07224166,0.0001799,2]
[328398681,1717338646604,-151.063,0.000156,2]
[328398683,1717338646614,-14.97321874,0.0001799,2]
[328398685,1717338646624,-650.37974326,0.00018,2]
[328398688,1717338646635,-16965.24999999,0.00018,2]
[328398706,1717338646796,-1708.45,0.00017999,2]
[328398934,1717338669493,460.70093847,0.00034564,30]
[328398973,1717338718471,500.0,0.00034564,30]
[328398974,1717338718732,500.0,0.00034564,30]
[328398975,1717338718999,500.0,0.00034564,30]
[328398977,1717338719291,500.0,0.00034564,30]
[328398980,1717338721588,500.0,0.00034564,30]
[328398981,1717338721853,500.0,0.00034564,30]
[328398983,1717338722127,500.0,0.00034564,30]
[328398984,1717338722424,500.0,0.00034564,30]
[328398985,1717338722776,500.0,0.00034564,30]
[328398986,1717338723092,500.0,0.00034564,30]
[328398988,1717338723701,500.0,0.00034564,30]
[328398990,1717338724125,500.0,0.00034564,30]
[328398991,1717338724729,255.56,0.00034564,30]
[328398994,1717338726892,500.0,0.00034564,30]
[328398995,1717338727200,500.0,0.00034564,30]
[328398997,1717338727471,500.0,0.00034564,30]
[328398998,1717338727727,635.45396453,0.00034564,30]
[328398999,1717338757125,1018.4,0.00034564,30]
[328399000,1717338766451,550.23162953,0.00034564,30]
[328399001,1717338768850,555.92595616,0.00034564,30]
[328399002,1717338781053,556.49642068,0.00034564,30]
[328399003,1717338783266,500.0,0.00034564,30]
[328399004,1717338783519,500.0,0.00034564,30]
[328399005,1717338783797,500.0,0.00034564,30]
[328399006,1717338785017,500.0,0.00034564,30]
[328399007,1717338785282,500.0,0.00034564,30]
[328399008,1717338785530,241.02604038,0.00034564,30]
[328399009,1717338786934,500.0,0.00034564,30]
[328399010,1717338787201,500.0,0.00034564,30]
[328399011,1717338787484,500.0,0.00034564,30]
[328399012,1717338787753,505.26,0.00034564,30]
[328399013,1717338787801,500.0,0.00034564,30]
[328399014,1717338788070,500.0,0.00034564,30]
[328399015,1717338788665,532.69235677,0.00034564,30]
[328399016,1717338788995,500.0,0.00034564,30]
[328399017,1717338789266,500.0,0.00034564,30]
[328399018,1717338789553,500.0,0.00034564,30]
[328399019,1717338789814,539.27176356,0.00034564,30]
[328399020,1717338791103,500.0,0.00034564,30]
[328399021,1717338791368,518.73101341,0.00034564,30]
[328399022,1717338793771,500.0,0.00034564,30]
[328399023,1717338798392,500.0,0.00034564,30]
[328399024,1717338798685,500.0,0.00034564,30]
[328399025,1717338798971,500.0,0.00034564,30]
[328399026,1717338799220,500.0,0.00034564,30]
[328399027,1717338803075,500.0,0.00034564,30]
[328399028,1717338803354,500.0,0.00034564,30]
[328399029,1717338803466,500.0,0.00034564,30]
[328399030,1717338803610,500.0,0.00034564,30]
[328399031,1717338803712,500.0,0.00034564,30]
[328399032,1717338803922,517.1185419,0.00034564,30]
[328399033,1717338804022,500.0,0.00034564,30]
[328399034,1717338804293,521.69215655,0.00034564,30]
[328399035,1717338805973,520.55534195,0.00034564,30]
[328399036,1717338806846,541.6340325,0.00034564,30]
[328399037,1717338806982,532.23348865,0.00034564,30]
[328399038,1717338808164,500.0,0.00034564,30]
[328399039,1717338808418,500.0,0.00034564,30]
[328399040,1717338808679,520.94033919,0.00034564,30]
[328399041,1717338809258,500.0,0.00034564,30]
[328399042,1717338809547,501.73617325,0.00034564,30]
[328399043,1717338811366,505.83263029,0.00034564,30]
[328399044,1717338812264,500.0,0.00034564,30]
[328399045,1717338812529,500.0,0.00034564,30]
[328399046,1717338812788,500.0,0.00034564,30]
[328399047,1717338812829,500.0,0.00034564,30]
[328399048,1717338813046,528.37568854,0.00034564,30]
[328399049,1717338813111,500.0,0.00034564,30]
[328399050,1717338813395,476.57447249,0.00034564,30]
[328399051,1717338815594,500.0,0.00034564,30]
[328399052,1717338815802,500.0,0.00034564,30]
[328399053,1717338816085,500.0,0.00034564,30]
[328399054,1717338816407,522.37978412,0.00034564,30]
[328399055,1717338817611,500.0,0.00034564,30]
[328399056,1717338817838,528.06006153,0.00034564,30]
[328399057,1717338818357,500.0,0.00034564,30]
[328399058,1717338818609,500.0,0.00034564,30]
[328399059,1717338818832,628.34194523,0.00034564,30]
[328399060,1717338818890,500.0,0.00034564,30]
[328399061,1717338819175,512.82546942,0.00034564,30]
[328399062,1717338820285,500.0,0.00034564,30]
[328399063,1717338820535,500.0,0.00034564,30]
[328399064,1717338820977,500.0,0.00034564,30]
[328399065,1717338821370,514.72112928,0.00034564,30]
[328399066,1717338822360,500.0,0.00034564,30]
[328399067,1717338822622,500.0,0.00034564,30]
[328399068,1717338822920,500.0,0.00034564,30]
[328399069,1717338823190,500.0,0.00034564,30]
[328399070,1717338823242,558.22305934,0.00034564,30]
[328399071,1717338823442,500.0,0.00034564,30]
[328399072,1717338823726,482.98800667,0.00034564,30]
[328399073,1717338833322,513.83789842,0.00034564,30]
[328399074,1717338843478,550.891385,0.00034564,30]
[328399075,1717338849208,524.3589759,0.00034564,30]